[Event "Early-Titled-Tuesday-Blitz-June-18-2024"]
[Site "Chess.com"]
[Date "2024.06.18"]
[Round "5"]
[White "abelmat"]
[Black "margarita_2703"]
[Result "1-0"]
[WhiteElo "2046"]
[BlackElo "2210"]
[TimeControl "180+1"]
[EndTime "8:58:33 PDT"]
[Termination "abelmat won by resignation"]

1. d4 {[%clk 0:03:00.9]} 1... d5 {[%clk 0:02:55.1]} 2. c4 {[%clk 0:02:59.8]}
2... e6 {[%clk 0:02:54.9]} 3. Nf3 {[%clk 0:02:59.7]} 3... Nf6 {[%clk 0:02:54.3]}
4. Nc3 {[%clk 0:02:59.9]} 4... c6 {[%clk 0:02:53.6]} 5. e3 {[%clk 0:02:59.4]}
5... Nbd7 {[%clk 0:02:52.3]} 6. Bd3 {[%clk 0:02:59.6]} 6... dxc4 {[%clk
0:02:52.5]} 7. Bxc4 {[%clk 0:03:00.5]} 7... b5 {[%clk 0:02:53.4]} 8. Bd3 {[%clk
0:03:00.3]} 8... Bb7 {[%clk 0:02:54.3]} 9. e4 {[%clk 0:02:59.8]} 9... Be7 {[%clk
0:02:52.9]} 10. O-O {[%clk 0:02:57.7]} 10... a6 {[%clk 0:02:52.9]} 11. e5 {[%clk
0:02:51.6]} 11... Nd5 {[%clk 0:02:52.8]} 12. Ne4 {[%clk 0:02:51.2]} 12... c5
{[%clk 0:02:51.4]} 13. dxc5 {[%clk 0:02:40.8]} 13... Nxc5 {[%clk 0:02:52.3]} 14.
Nxc5 {[%clk 0:02:38.1]} 14... Bxc5 {[%clk 0:02:50.5]} 15. Bg5 {[%clk 0:02:36.4]}
15... Qb6 {[%clk 0:02:50.4]} 16. Rc1 {[%clk 0:02:31]} 16... h6 {[%clk
0:02:47.3]} 17. Bd2 {[%clk 0:02:18.7]} 17... Rd8 {[%clk 0:02:46.5]} 18. Qe2
{[%clk 0:02:16.1]} 18... Nb4 {[%clk 0:02:42.4]} 19. Bb1 {[%clk 0:02:06.1]} 19...
O-O {[%clk 0:02:36.7]} 20. Qe1 {[%clk 0:01:44.8]} 20... Nd3 {[%clk 0:02:35.7]}
21. Bxd3 {[%clk 0:01:38.5]} 21... Rxd3 {[%clk 0:02:36.6]} 22. Ba5 {[%clk
0:01:04.2]} 22... Bxf2+ {[%clk 0:02:28.3]} 23. Rxf2 {[%clk 0:00:51.3]} 23... Qa7
{[%clk 0:02:26.1]} 24. Kh1 {[%clk 0:00:43.7]} 24... Bxf3 {[%clk 0:02:24.4]} 25.
Rxf3 {[%clk 0:00:37.5]} 25... Rxf3 {[%clk 0:02:24.7]} 26. gxf3 {[%clk
0:00:37.4]} 26... Qd4 {[%clk 0:02:25.6]} 27. Bc3 {[%clk 0:00:27]} 27... Qf4
{[%clk 0:02:24.3]} 28. Qf1 {[%clk 0:00:17.4]} 28... Rd8 {[%clk 0:02:22.8]} 29.
Rd1 {[%clk 0:00:17.4]} 29... Rc8 {[%clk 0:02:21.3]} 30. Qe2 {[%clk 0:00:15.4]}
30... h5 {[%clk 0:02:19.2]} 31. Rd4 {[%clk 0:00:14.5]} 31... Qc1+ {[%clk
0:02:18.6]} 32. Kg2 {[%clk 0:00:14.4]} 32... Qg5+ {[%clk 0:02:18.6]} 33. Kh1
{[%clk 0:00:11.5]} 33... Qc1+ {[%clk 0:02:18.1]} 34. Rd1 {[%clk 0:00:11.2]}
34... Qg5 {[%clk 0:02:18.6]} 35. Rg1 {[%clk 0:00:10.5]} 35... Qf5 {[%clk
0:02:19]} 36. Qg2 {[%clk 0:00:10.1]} 36... g6 {[%clk 0:02:18.9]} 37. Qg3 {[%clk
0:00:08.2]} 37... h4 {[%clk 0:02:18.2]} 38. Qg4 {[%clk 0:00:07.3]} 38... Rc4
{[%clk 0:02:14.3]} 39. Qxf5 {[%clk 0:00:06.8]} 39... exf5 {[%clk 0:02:15.2]} 40.
Kg2 {[%clk 0:00:07]} 40... Kf8 {[%clk 0:02:15.4]} 41. Rd1 {[%clk 0:00:07]} 41...
Ke7 {[%clk 0:02:15.4]} 42. Rd3 {[%clk 0:00:05.8]} 42... Rc7 {[%clk 0:02:15.6]}
43. a3 {[%clk 0:00:05.8]} 43... g5 {[%clk 0:02:13.3]} 44. Rd6 {[%clk 0:00:05.9]}
44... f4 {[%clk 0:02:12.6]} 45. Rxa6 {[%clk 0:00:05.4]} 45... Rd7 {[%clk
0:02:12.6]} 46. Bb4+ {[%clk 0:00:04.1]} 46... Kd8 {[%clk 0:02:12.7]} 47. Rd6
{[%clk 0:00:05]} 47... Rxd6 {[%clk 0:02:12.5]} 48. Bxd6 {[%clk 0:00:04.8]} 48...
Kd7 {[%clk 0:02:13.4]} 49. Kf2 {[%clk 0:00:05.4]} 49... f6 {[%clk 0:02:13.8]}
50. Ke2 {[%clk 0:00:05.8]} 50... f5 {[%clk 0:02:14.2]} 51. h3 {[%clk 0:00:05.6]}
51... Ke6 {[%clk 0:02:14.1]} 52. b4 {[%clk 0:00:04.8]} 52... g4 {[%clk
0:02:12.8]} 53. hxg4 {[%clk 0:00:04.6]} 53... fxg4 {[%clk 0:02:13.1]} 54. fxg4
{[%clk 0:00:04.8]} 54... Kd5 {[%clk 0:02:12.8]} 55. Kf3 {[%clk 0:00:05]} 55...
h3 {[%clk 0:02:12.7]} 56. g5 {[%clk 0:00:04.4]} 56... Ke6 {[%clk 0:02:13]} 57.
g6 {[%clk 0:00:03.7]} 57... Kf5 {[%clk 0:01:47.5]} 58. Kf2 {[%clk 0:00:02.8]}
58... h2 {[%clk 0:01:48.4]} 59. Kg2 {[%clk 0:00:02.3]} 59... Kxg6 {[%clk
0:01:46.9]} 60. Kxh2 {[%clk 0:00:03]} 60... Kf5 {[%clk 0:01:47.8]} 61. Kg2
{[%clk 0:00:03.5]} 61... Kg4 {[%clk 0:01:44.3]} 62. Kf2 {[%clk 0:00:04.4]} 62...
Kf5 {[%clk 0:01:44.3]} 63. Bb8 {[%clk 0:00:05.3]} 63... Ke6 {[%clk 0:01:43.1]}
64. Bc7 {[%clk 0:00:06.1]} 64... Kf5 {[%clk 0:01:43.5]} 65. Kf3 {[%clk
0:00:06.6]} 65... Kg5 {[%clk 0:01:44]} 66. e6 {[%clk 0:00:07.5]} 66... Kf6
{[%clk 0:01:44.3]} 67. Bd6 {[%clk 0:00:08.3]} 67... Kxe6 {[%clk 0:01:44.2]} 68.
Bc5 {[%clk 0:00:09.2]} 68... Kd5 {[%clk 0:01:45.1]} 69. Kxf4 {[%clk 0:00:09.8]}
69... Kc4 {[%clk 0:01:46]} 70. Ke5 {[%clk 0:00:09.7]} 70... Kb3 {[%clk
0:01:46.4]} 71. Kd6 {[%clk 0:00:10.3]} 71... Kxa3 {[%clk 0:01:46.9]} 72. Kc6
{[%clk 0:00:11]} 72... Ka4 {[%clk 0:01:47.4]} 73. Kb6 {[%clk 0:00:10.5]} 73...
Kb3 {[%clk 0:01:47.9]} 74. Kxb5 {[%clk 0:00:11.4]} 74... Kc3 {[%clk 0:01:48]}
75. Kc6 {[%clk 0:00:12.2]} 75... Kd3 {[%clk 0:01:48.9]} 76. b5 {[%clk
0:00:12.9]} 76... Ke4 {[%clk 0:01:49.8]} 77. b6 {[%clk 0:00:13.8]} 1-0

[Event "Early-Titled-Tuesday-Blitz-June-18-2024"]
[Site "Chess.com"]
[Date "2024.06.18"]
[Round "5"]
[White "edgarhay012"]
[Black "LangesNasenhaar"]
[Result "1-0"]
[WhiteElo "2683"]
[BlackElo "2496"]
[TimeControl "180+1"]
[EndTime "8:58:35 PDT"]
[Termination "edgarhay012 won by checkmate"]

1. e4 {[%clk 0:02:51]} 1... g6 {[%clk 0:03:00]} 2. d4 {[%clk 0:02:51]} 2... Bg7
{[%clk 0:03:00.4]} 3. h4 {[%clk 0:02:51.7]} 3... h5 {[%clk 0:02:59.4]} 4. Nf3
{[%clk 0:02:50.4]} 4... d5 {[%clk 0:02:59.5]} 5. exd5 {[%clk 0:02:50.4]} 5...
Bg4 {[%clk 0:02:53.6]} 6. c4 {[%clk 0:02:49.4]} 6... Nf6 {[%clk 0:02:50.4]} 7.
Nc3 {[%clk 0:02:49.4]} 7... O-O {[%clk 0:02:49.1]} 8. Be2 {[%clk 0:02:49.6]}
8... c6 {[%clk 0:02:49.3]} 9. dxc6 {[%clk 0:02:49.7]} 9... Nxc6 {[%clk
0:02:49.4]} 10. d5 {[%clk 0:02:50.1]} 10... Bxf3 {[%clk 0:02:48.9]} 11. gxf3
{[%clk 0:02:49]} 11... Ne5 {[%clk 0:02:45.6]} 12. Bg5 {[%clk 0:02:46.3]} 12...
Rc8 {[%clk 0:02:36.2]} 13. Qd4 {[%clk 0:02:40.4]} 13... Nh7 {[%clk 0:02:19.3]}
14. Qf4 {[%clk 0:02:27.6]} 14... Qc7 {[%clk 0:01:30.1]} 15. Rc1 {[%clk
0:01:40.5]} 15... Nxg5 {[%clk 0:01:23.7]} 16. Qxg5 {[%clk 0:01:41.4]} 16... Bf6
{[%clk 0:01:19]} 17. Qh6 {[%clk 0:01:35.7]} 17... Nxc4 {[%clk 0:01:13.5]} 18.
O-O {[%clk 0:01:17.2]} 18... Nxb2 {[%clk 0:00:50.6]} 19. Ne4 {[%clk 0:01:14.3]}
19... Qe5 {[%clk 0:00:45.6]} 20. Qe3 {[%clk 0:00:58.6]} 20... Bxh4 {[%clk
0:00:35.4]} 21. Qb3 {[%clk 0:00:32.2]} 21... b5 {[%clk 0:00:15.9]} 22. Bxb5
{[%clk 0:00:24.6]} 22... Rb8 {[%clk 0:00:15.3]} 23. Rc2 {[%clk 0:00:15]} 23...
a6 {[%clk 0:00:13.6]} 24. Qxb2 {[%clk 0:00:11.1]} 24... Qxd5 {[%clk 0:00:05.8]}
25. Rc5 {[%clk 0:00:07.7]} 25... Qd8 {[%clk 0:00:05.9]} 26. a4 {[%clk
0:00:06.2]} 26... axb5 {[%clk 0:00:05.7]} 27. axb5 {[%clk 0:00:07.1]} 27... Qb6
{[%clk 0:00:06]} 28. Qc3 {[%clk 0:00:06.3]} 28... Qe6 {[%clk 0:00:05.9]} 29. Rd1
{[%clk 0:00:05.9]} 29... Bf6 {[%clk 0:00:05.4]} 30. Qc2 {[%clk 0:00:04.7]} 30...
Be5 {[%clk 0:00:04.9]} 31. Rc6 {[%clk 0:00:04.6]} 31... Qf5 {[%clk 0:00:04]} 32.
b6 {[%clk 0:00:03.2]} 32... Rfd8 {[%clk 0:00:03.9]} 33. Rxd8+ {[%clk 0:00:02.6]}
33... Rxd8 {[%clk 0:00:03.7]} 34. b7 {[%clk 0:00:03.2]} 34... Kg7 {[%clk
0:00:03.6]} 35. Rc8 {[%clk 0:00:02.8]} 35... Rd4 {[%clk 0:00:01.6]} 36. b8=Q
{[%clk 0:00:03.3]} 36... Bxb8 {[%clk 0:00:01.9]} 37. Rxb8 {[%clk 0:00:03.5]}
37... Rd5 {[%clk 0:00:02.2]} 38. Qb2+ {[%clk 0:00:03.7]} 38... Re5 {[%clk
0:00:02.1]} 39. Rb5 {[%clk 0:00:03.4]} 39... f6 {[%clk 0:00:01.3]} 40. Rxe5
{[%clk 0:00:04]} 40... fxe5 {[%clk 0:00:01.9]} 41. Qb7 {[%clk 0:00:04.6]} 41...
Qe6 {[%clk 0:00:01.7]} 42. Qc7 {[%clk 0:00:04.5]} 42... Kf7 {[%clk 0:00:01.8]}
43. Ng5+ {[%clk 0:00:04.2]} 43... Kg7 {[%clk 0:00:01]} 44. Nxe6+ {[%clk
0:00:05.1]} 44... Kf6 {[%clk 0:00:01.9]} 45. Nc5 {[%clk 0:00:05.1]} 45... Kf5
{[%clk 0:00:02.4]} 46. Qd7+ {[%clk 0:00:05.4]} 46... Kf4 {[%clk 0:00:03.3]} 47.
Qxe7 {[%clk 0:00:05.1]} 47... Kf5 {[%clk 0:00:03.7]} 48. Qe6+ {[%clk 0:00:05.3]}
48... Kg5 {[%clk 0:00:04.6]} 49. Qxe5+ {[%clk 0:00:05.6]} 49... Kh4 {[%clk
0:00:05.5]} 50. Qf4+ {[%clk 0:00:05.4]} 50... Kh3 {[%clk 0:00:05.8]} 51. Qg3#
{[%clk 0:00:06.3]} 1-0

[Event "Early-Titled-Tuesday-Blitz-June-18-2024"]
[Site "Chess.com"]
[Date "2024.06.18"]
[Round "5"]
[White "PLAYER_2006_M"]
[Black "nihalsarin"]
[Result "0-1"]
[WhiteElo "2956"]
[BlackElo "3186"]
[TimeControl "180+1"]
[EndTime "8:58:37 PDT"]
[Termination "nihalsarin won on time"]

1. e4 {[%clk 0:03:00.9]} 1... c5 {[%clk 0:02:59.3]} 2. Nf3 {[%clk 0:03:00.6]}
2... g6 {[%clk 0:02:57]} 3. d4 {[%clk 0:02:58.4]} 3... cxd4 {[%clk 0:02:57.9]}
4. Qxd4 {[%clk 0:02:58.3]} 4... Nf6 {[%clk 0:02:57.8]} 5. e5 {[%clk 0:02:58.8]}
5... Nc6 {[%clk 0:02:55.8]} 6. Qa4 {[%clk 0:02:58.7]} 6... Nd5 {[%clk
0:02:53.4]} 7. Qe4 {[%clk 0:02:57]} 7... Nb6 {[%clk 0:02:40.5]} 8. Nc3 {[%clk
0:02:53.7]} 8... Bg7 {[%clk 0:02:40.2]} 9. Bf4 {[%clk 0:02:51.3]} 9... O-O
{[%clk 0:02:29.9]} 10. O-O-O {[%clk 0:02:47.4]} 10... d5 {[%clk 0:02:21.6]} 11.
exd6 {[%clk 0:02:35.9]} 11... exd6 {[%clk 0:02:20.2]} 12. Rxd6 {[%clk
0:02:32.4]} 12... Bd7 {[%clk 0:02:19.8]} 13. Bb5 {[%clk 0:02:09.2]} 13... Re8
{[%clk 0:02:19.3]} 14. Qd3 {[%clk 0:02:06.1]} 14... Qc8 {[%clk 0:01:33.9]} 15.
a3 {[%clk 0:01:30.6]} 15... a6 {[%clk 0:01:23]} 16. Bxc6 {[%clk 0:01:29]} 16...
Bxc6 {[%clk 0:01:23.9]} 17. Be3 {[%clk 0:01:21.2]} 17... Bxf3 {[%clk 0:01:18]}
18. Bxb6 {[%clk 0:01:20.6]} 18... Bxg2 {[%clk 0:01:17.6]} 19. Rd1 {[%clk
0:01:21.1]} 19... Bc6 {[%clk 0:01:15.1]} 20. Bd4 {[%clk 0:01:20.1]} 20... Bf8
{[%clk 0:01:05.9]} 21. Rf6 {[%clk 0:01:11.3]} 21... Qg4 {[%clk 0:01:06]} 22. f3
{[%clk 0:01:02.1]} 22... Qh4 {[%clk 0:01:03.6]} 23. Qc4 {[%clk 0:00:54.2]} 23...
Re7 {[%clk 0:00:53.7]} 24. Nd5 {[%clk 0:00:35.8]} 24... Bxd5 {[%clk 0:00:54]}
25. Qxd5 {[%clk 0:00:36.7]} 25... Rc8 {[%clk 0:00:54.8]} 26. c3 {[%clk
0:00:35.5]} 26... Rcc7 {[%clk 0:00:54.2]} 27. Rd6 {[%clk 0:00:26.9]} 27... Re8
{[%clk 0:00:39.8]} 28. Rd7 {[%clk 0:00:23.5]} 28... Rxd7 {[%clk 0:00:37.4]} 29.
Qxd7 {[%clk 0:00:24.4]} 29... Qf4+ {[%clk 0:00:32.9]} 30. Kb1 {[%clk 0:00:21.4]}
30... Qxf3 {[%clk 0:00:33.2]} 31. Qxe8 {[%clk 0:00:21.1]} 31... Qxd1+ {[%clk
0:00:33.3]} 32. Ka2 {[%clk 0:00:21.7]} 32... Qg4 {[%clk 0:00:33.4]} 33. Qb8
{[%clk 0:00:17.4]} 33... Qe6+ {[%clk 0:00:33.5]} 34. Ka1 {[%clk 0:00:17.7]}
34... Qe1+ {[%clk 0:00:30.8]} 35. Ka2 {[%clk 0:00:17.7]} 35... Qe6+ {[%clk
0:00:31.7]} 36. Ka1 {[%clk 0:00:18.4]} 36... Qc6 {[%clk 0:00:32.4]} 37. Qe5
{[%clk 0:00:14.1]} 37... f6 {[%clk 0:00:32.8]} 38. Qxf6 {[%clk 0:00:14.6]} 38...
Qxf6 {[%clk 0:00:33.7]} 39. Bxf6 {[%clk 0:00:15.5]} 39... Kf7 {[%clk 0:00:33.4]}
40. Bh4 {[%clk 0:00:13.8]} 40... Ke6 {[%clk 0:00:31.7]} 41. Kb1 {[%clk
0:00:13.9]} 41... Bd6 {[%clk 0:00:27.8]} 42. h3 {[%clk 0:00:13.5]} 42... Kf5
{[%clk 0:00:28.4]} 43. Kc2 {[%clk 0:00:11.6]} 43... Ke4 {[%clk 0:00:29.1]} 44.
c4 {[%clk 0:00:11.1]} 44... Kf3 {[%clk 0:00:29.1]} 45. Bg5 {[%clk 0:00:07.2]}
45... Bf4 {[%clk 0:00:24.4]} 46. Bd8 {[%clk 0:00:05.9]} 46... g5 {[%clk
0:00:22.3]} 47. b4 {[%clk 0:00:04.3]} 47... Kg3 {[%clk 0:00:20.2]} 48. b5 {[%clk
0:00:03.6]} 48... Kxh3 {[%clk 0:00:16.6]} 0-1

[Event "Early-Titled-Tuesday-Blitz-June-18-2024"]
[Site "Chess.com"]
[Date "2024.06.18"]
[Round "5"]
[White "Vesper2018"]
[Black "SargissyanSargis"]
[Result "1-0"]
[WhiteElo "2611"]
[BlackElo "2425"]
[TimeControl "180+1"]
[EndTime "8:58:37 PDT"]
[Termination "Vesper2018 won by resignation"]

1. e4 {[%clk 0:02:59.3]} 1... e5 {[%clk 0:02:59.9]} 2. Nf3 {[%clk 0:02:59]} 2...
Nc6 {[%clk 0:03:00.5]} 3. Bb5 {[%clk 0:02:58.9]} 3... a6 {[%clk 0:03:00.7]} 4.
Ba4 {[%clk 0:02:59.3]} 4... Nf6 {[%clk 0:02:59.7]} 5. O-O {[%clk 0:02:57.9]}
5... Be7 {[%clk 0:03:00.2]} 6. Re1 {[%clk 0:02:57.6]} 6... b5 {[%clk 0:03:00.8]}
7. Bb3 {[%clk 0:02:58.2]} 7... O-O {[%clk 0:03:01.5]} 8. a4 {[%clk 0:02:57.7]}
8... Bb7 {[%clk 0:03:00]} 9. d3 {[%clk 0:02:54.9]} 9... d6 {[%clk 0:02:57.5]}
10. c3 {[%clk 0:02:54.5]} 10... h6 {[%clk 0:02:53.6]} 11. Nbd2 {[%clk
0:02:52.1]} 11... Re8 {[%clk 0:02:53.2]} 12. Nf1 {[%clk 0:02:52.1]} 12... Bf8
{[%clk 0:02:53.9]} 13. Ne3 {[%clk 0:02:51.1]} 13... Na5 {[%clk 0:02:42.4]} 14.
Ba2 {[%clk 0:02:50.7]} 14... d5 {[%clk 0:02:32.4]} 15. exd5 {[%clk 0:02:26]}
15... Nxd5 {[%clk 0:02:31.4]} 16. Bxd5 {[%clk 0:02:23]} 16... Bxd5 {[%clk
0:02:32.3]} 17. b4 {[%clk 0:02:23]} 17... Nc6 {[%clk 0:02:28.3]} 18. axb5 {[%clk
0:02:22.3]} 18... Bxf3 {[%clk 0:02:22.2]} 19. Qxf3 {[%clk 0:02:17.6]} 19... axb5
{[%clk 0:02:22.6]} 20. Rxa8 {[%clk 0:02:09.4]} 20... Qxa8 {[%clk 0:02:23.5]} 21.
Nf5 {[%clk 0:02:09.6]} 21... Ne7 {[%clk 0:02:02.9]} 22. Nxe7+ {[%clk 0:01:58.2]}
22... Bxe7 {[%clk 0:02:00.5]} 23. Qg3 {[%clk 0:01:45.4]} 23... Bf6 {[%clk
0:01:41.9]} 24. Bxh6 {[%clk 0:01:44.1]} 24... e4 {[%clk 0:01:42.2]} 25. d4
{[%clk 0:01:35.2]} 25... Qd5 {[%clk 0:01:21.8]} 26. Bf4 {[%clk 0:01:26.9]} 26...
c6 {[%clk 0:01:21.2]} 27. f3 {[%clk 0:01:27.1]} 27... Re6 {[%clk 0:01:14.3]} 28.
Bd2 {[%clk 0:01:10.4]} 28... Qa2 {[%clk 0:00:42.3]} 29. Qf2 {[%clk 0:01:02.2]}
29... exf3 {[%clk 0:00:38.2]} 30. Rxe6 {[%clk 0:01:00.7]} 30... Qxe6 {[%clk
0:00:36.7]} 31. gxf3 {[%clk 0:01:00.6]} 31... Qf5 {[%clk 0:00:35]} 32. Qe3
{[%clk 0:00:58.1]} 32... Qc2 {[%clk 0:00:31.9]} 33. Qe8+ {[%clk 0:00:56.1]}
33... Kh7 {[%clk 0:00:31.3]} 34. Qe4+ {[%clk 0:00:56.2]} 34... Qxe4 {[%clk
0:00:30.8]} 35. fxe4 {[%clk 0:00:56.9]} 35... Bh4 {[%clk 0:00:25.5]} 36. Kg2
{[%clk 0:00:54.8]} 36... g6 {[%clk 0:00:25.9]} 37. Kf3 {[%clk 0:00:49.3]} 37...
f5 {[%clk 0:00:25.6]} 38. exf5 {[%clk 0:00:47.7]} 38... gxf5 {[%clk 0:00:25.7]}
39. Kf4 {[%clk 0:00:47.7]} 39... Kg6 {[%clk 0:00:25.1]} 40. Ke5 {[%clk
0:00:48.1]} 40... Bg5 {[%clk 0:00:20]} 41. Bf4 {[%clk 0:00:46.1]} 41... Bh4
{[%clk 0:00:14.6]} 42. Kd6 {[%clk 0:00:37.4]} 42... Be1 {[%clk 0:00:14]} 43.
Kxc6 {[%clk 0:00:34.1]} 43... Bxc3 {[%clk 0:00:14.7]} 44. Kc5 {[%clk 0:00:34.6]}
44... Kh5 {[%clk 0:00:13.9]} 45. d5 {[%clk 0:00:31.6]} 45... Kg4 {[%clk
0:00:13.6]} 46. Bc1 {[%clk 0:00:29.7]} 46... f4 {[%clk 0:00:13]} 47. d6 {[%clk
0:00:29.8]} 47... f3 {[%clk 0:00:12.7]} 48. Be3 {[%clk 0:00:29.6]} 48... Bf6
{[%clk 0:00:06.1]} 49. Kxb5 {[%clk 0:00:29.1]} 49... Kh3 {[%clk 0:00:04.8]} 50.
Kc6 {[%clk 0:00:28.8]} 50... Kg2 {[%clk 0:00:05.7]} 51. b5 {[%clk 0:00:27]}
51... Bg5 {[%clk 0:00:05.1]} 52. Bc5 {[%clk 0:00:24.5]} 52... Kf1 {[%clk
0:00:05.6]} 53. b6 {[%clk 0:00:24.2]} 53... Ke2 {[%clk 0:00:06.3]} 54. d7 {[%clk
0:00:24.2]} 54... Be3 {[%clk 0:00:03.3]} 55. Bxe3 {[%clk 0:00:24.1]} 55... Kxe3
{[%clk 0:00:03.2]} 56. d8=Q {[%clk 0:00:24.5]} 56... f2 {[%clk 0:00:04.1]} 57.
Qd1 {[%clk 0:00:24.6]} 1-0

[Event "Early-Titled-Tuesday-Blitz-June-18-2024"]
[Site "Chess.com"]
[Date "2024.06.18"]
[Round "5"]
[White "MatthewG-p4p"]
[Black "vladgoncharov"]
[Result "0-1"]
[WhiteElo "2848"]
[BlackElo "2667"]
[TimeControl "180+1"]
[EndTime "8:58:39 PDT"]
[Termination "vladgoncharov won by resignation"]

1. e4 {[%clk 0:02:55]} 1... e6 {[%clk 0:02:59.8]} 2. d4 {[%clk 0:02:53.1]} 2...
d5 {[%clk 0:02:59.6]} 3. Bd3 {[%clk 0:02:49.3]} 3... dxe4 {[%clk 0:02:58.6]} 4.
Bxe4 {[%clk 0:02:50.2]} 4... Nf6 {[%clk 0:02:58.4]} 5. Bf3 {[%clk 0:02:50.5]}
5... c5 {[%clk 0:02:58.7]} 6. Ne2 {[%clk 0:02:49.3]} 6... Nc6 {[%clk 0:02:54.7]}
7. Be3 {[%clk 0:02:49.4]} 7... cxd4 {[%clk 0:02:52]} 8. Nxd4 {[%clk 0:02:49.7]}
8... Ne5 {[%clk 0:02:51.9]} 9. Nc3 {[%clk 0:02:49.9]} 9... a6 {[%clk 0:02:40.1]}
10. a3 {[%clk 0:01:58]} 10... Be7 {[%clk 0:02:18.1]} 11. Qe2 {[%clk 0:01:57.7]}
11... Nxf3+ {[%clk 0:02:11.8]} 12. Qxf3 {[%clk 0:01:58.6]} 12... Qc7 {[%clk
0:02:01.4]} 13. Bf4 {[%clk 0:01:43.1]} 13... e5 {[%clk 0:01:49.4]} 14. Bg3
{[%clk 0:01:43.4]} 14... Bg4 {[%clk 0:01:42.2]} 15. Qd3 {[%clk 0:00:34.7]} 15...
Rd8 {[%clk 0:01:41.1]} 16. h3 {[%clk 0:00:27.9]} 16... Bc8 {[%clk 0:01:31]} 17.
Qe2 {[%clk 0:00:06]} 17... Rxd4 {[%clk 0:01:06.1]} 18. Bxe5 {[%clk 0:00:06.3]}
18... Qc4 {[%clk 0:01:05.8]} 19. Bxd4 {[%clk 0:00:06]} 19... Qxd4 {[%clk
0:01:06]} 20. O-O {[%clk 0:00:06.1]} 20... Be6 {[%clk 0:01:03.7]} 21. Rad1
{[%clk 0:00:04.6]} 21... Qb6 {[%clk 0:00:56]} 22. Na4 {[%clk 0:00:05.1]} 22...
Qc6 {[%clk 0:00:52.4]} 23. Nc3 {[%clk 0:00:03.9]} 23... O-O {[%clk 0:00:51.4]}
24. Rfe1 {[%clk 0:00:04.2]} 24... Rc8 {[%clk 0:00:46.2]} 25. Qe3 {[%clk
0:00:02.6]} 25... h6 {[%clk 0:00:42.6]} 26. Qg3 {[%clk 0:00:03]} 26... Bf8
{[%clk 0:00:38]} 27. Rd3 {[%clk 0:00:03]} 27... Bf5 {[%clk 0:00:32.8]} 28. Rd2
{[%clk 0:00:03.1]} 28... b5 {[%clk 0:00:24.6]} 29. Ree2 {[%clk 0:00:02.3]} 29...
a5 {[%clk 0:00:23.6]} 30. Re3 {[%clk 0:00:02.3]} 30... b4 {[%clk 0:00:23]} 31.
axb4 {[%clk 0:00:03.2]} 31... axb4 {[%clk 0:00:22.3]} 32. Ne2 {[%clk 0:00:04]}
32... Bc5 {[%clk 0:00:17.2]} 33. Nd4 {[%clk 0:00:04]} 33... Bxd4 {[%clk
0:00:16.5]} 34. Rxd4 {[%clk 0:00:04.9]} 34... Qxc2 {[%clk 0:00:16.3]} 35. Qf4
{[%clk 0:00:05]} 35... b3 {[%clk 0:00:13.9]} 36. Kh2 {[%clk 0:00:05.1]} 36...
Be6 {[%clk 0:00:13]} 37. Re5 {[%clk 0:00:04.8]} 37... Qxb2 {[%clk 0:00:10.9]}
38. Rd2 {[%clk 0:00:04.6]} 38... Qc3 {[%clk 0:00:10.3]} 39. Rb5 {[%clk
0:00:04.9]} 39... Nd5 {[%clk 0:00:07.8]} 40. Qd4 {[%clk 0:00:05.1]} 40... Qxd4
{[%clk 0:00:07.8]} 41. Rxd4 {[%clk 0:00:06]} 41... Nc3 {[%clk 0:00:07.8]} 42.
Rbb4 {[%clk 0:00:06]} 42... g5 {[%clk 0:00:07.4]} 43. Rd2 {[%clk 0:00:06.1]}
43... Rc5 {[%clk 0:00:07.3]} 44. h4 {[%clk 0:00:06.2]} 44... Kg7 {[%clk
0:00:07.2]} 45. hxg5 {[%clk 0:00:06.4]} 45... hxg5 {[%clk 0:00:08.1]} 46. Kg3
{[%clk 0:00:07]} 46... Rb5 {[%clk 0:00:08.5]} 47. Rxb5 {[%clk 0:00:06.5]} 47...
Nxb5 {[%clk 0:00:08.6]} 48. f4 {[%clk 0:00:07.4]} 48... gxf4+ {[%clk 0:00:07.2]}
49. Kxf4 {[%clk 0:00:08.3]} 49... Na3 {[%clk 0:00:07.3]} 50. Ke4 {[%clk
0:00:08.7]} 50... Nc4 {[%clk 0:00:07.5]} 51. Rd1 {[%clk 0:00:09.2]} 51... b2
{[%clk 0:00:07.5]} 52. Kd3 {[%clk 0:00:09.6]} 52... Na3 {[%clk 0:00:06.7]} 0-1